Cogmind - Beta 11.1 @@@ ROGUE MODE // 2022.05.07 @ 11:15:02 Player: darki Result: Smashed by cave-in Performance ------------- Evolutions (1) 500 Regions Visited (4) 800 Robots Destroyed (37) 185 Value Destroyed (821) 821 Prototype IDs (5) 100 Alien Tech Used (0) 0 Bonus (112) 112 TOTAL SCORE: 2518 Bonus ------- Follower Combat Kills 133 Friendly Fire -21 Cogmind --------- Core Integrity 0/400 Matter 259/300 Energy 280/280 System Corruption 4% Temperature Cool (0) Movement Core (950) Ox18 Location -9/Mines Parts ------- > --- POWER (1) -------- Cooled Ion Engine > --- PROPULSION (2) --- (None) > --- UTILITY (4) ------ High-capacity Storage Unit Structural Scanner Terrain Scan Processor > --- WEAPON (2) ------- Improved EM Shotgun Heavy Assault Rifle > --- INVENTORY (20) --- Aluminum Leg Improved Aluminum Leg Wheel Wheel Medium Armor Plating Improved Medium Laser Rocket Launcher Mining Laser Explosive Trap Peak State ------------ > --- POWER ------------ Light Nuclear Core > --- PROPULSION ------- Aluminum Leg Aluminum Leg > --- UTILITY ---------- Structural Scanner Signal Interpreter Improved Terrain Scanner Terrain Scan Processor > --- WEAPON ----------- Advanced Beam Cannon Advanced Beam Cannon > --- INVENTORY -------- Wheel Heavy Assault Rifle Rocket Launcher Explosive Trap Explosive Trap [Rating: 18] Favorites ----------- Power Light Ion Engine Engine Light Ion Engine Power Core Light Nuclear Core Propulsion Wheel Leg Aluminum Leg Wheel Wheel Utility Signal Interpreter Device Sensor Array Storage Medium Storage Unit Processor Signal Interpreter Weapon Advanced Beam Cannon Energy Gun Particle Gun Energy Cannon Advanced Beam Cannon Ballistic Gun Light Assault Rifle Build | -11 -10 -10 -9 -9 ------- Run | Scr Mat Min Mat Min Slots Evolved 2 | . . . 2 . Power . | . . . . . Propulsion . | . . . . . Utility 2 | . . . 2 . Weapon . | . . . . . Parts Attached 37 | 7 2 2 17 9 Power 6 | 1 . 1 4 . Engine 5 | 1 . 1 3 . Core 1 | . . . 1 . Reactor . | . . . . . Propulsion 10 | 2 . . 2 6 Treads . | . . . . . Leg 5 | . . . 2 3 Wheel 5 | 2 . . . 3 Hover . | . . . . . Flight . | . . . . . Utility 9 | 2 2 . 4 1 Device 4 | 1 1 . 2 . Storage 3 | 1 . . 1 1 Processor 2 | . 1 . 1 . Hackware . | . . . . . Protection . | . . . . . Artifact . | . . . . . Weapon 12 | 2 . 1 7 2 Energy Gun 4 | . . 1 2 1 Energy Cannon 5 | . . . 5 . Ballistic Gun 3 | 2 . . . 1 Ballistic Cannon . | . . . . . Launcher . | . . . . . Special Weapon . | . . . . . Impact Weapon . | . . . . . Slashing Weapon . | . . . . . Piercing Weapon . | . . . . . Special Melee Weapon . | . . . . . Unidentified Prototypes 5 | . . . 5 . Parts Lost 12 | . . 2 2 8 Power 1 | . . 1 . . Propulsion 6 | . . . 1 5 Utility 2 | . . . 1 1 Weapon 3 | . . 1 . 2 Highest Loss Streak 3 | . . 2 1 3 To Critical Strikes . | . . . . . Average Slot Usage (%) 97 | . 100 98 95 97 Engine 11 | . 14 13 8 11 Leg 8 | . . . 16 16 Wheel 15 | . 28 28 5 4 Device 14 | . 9 14 17 11 Storage 4 | . 11 . 4 11 Processor 16 | . 6 14 17 22 Energy Gun 5 | . . 7 5 3 Energy Cannon 7 | . . . 15 13 Ballistic Gun 10 | . 28 19 . 3 Naked Turns . | . . . . . Heaviest Build 57 | 12 12 8 27 57 Greatest Support 23 | 20 20 20 20 23 Greatest Overweight (x) 5 | 3 . . 1 5 Average Overweight (x) . | . . . . 2 Largest Inventory Capacity 20 | 8 8 5 10 20 Average Capacity 8 | 7 7 5 7 17 Most Carried 11 | . 4 5 10 11 Average Carried 5 | . 1 4 5 8 Final Capacity 20 | 8 5 5 10 20 Final Carried 10 | . 4 5 10 9 Class Distribution -------------------- 56% | Mutant 29% | Scavenger-Mutant 7% | Skirmisher 6% | Scavenger-Skirmisher Dominant Class ---------------- Mutant | -10/Materials Mutant | -10/Mines Scavenger-Mutant | -9/Materials Scavenger-Mutant | -9/Mines Resources | -11 -10 -10 -9 -9 ----------- Run | Scr Mat Min Mat Min Matter Collected 816 | 386 46 106 208 70 Remotely . | . . . . . Salvage Created 1472 | 176 48 361 725 162 Parts 77 | 13 5 21 38 . Haulers Intercepted 3 | . . . 3 . Recyclers Shooed . | . . . . . Parts Field Recycled . | . . . . . Retrieved Matter . | . . . . . Parts Self-Destructed . | . . . . . Prevented . | . . . . . Kills | -11 -10 -10 -9 -9 ------- Run | Scr Mat Min Mat Min Combat Hostiles Destroyed 33 | . 3 7 13 10 Guns 17 | . 3 6 1 7 Cannons 12 | . . . 10 2 AOE 3 | . . 1 1 1 Classes Destroyed 8 | 3 1 1 2 1 Worker 4 | 2 . 1 1 . Tunneler 5 | 4 . 1 . . Hauler 3 | . . . 3 . Recycler 2 | 1 . 1 . . Swarmer 6 | . 3 3 . . Grunt 13 | . . 4 9 . Sentry 4 | . . . 4 . Assembled 10 | . . . . 10 Best Kill Streak 5 | 3 3 2 5 4 Combat Bots Only 5 | . 3 2 5 4 Max Kills in Single Turn 2 | 1 1 1 2 1 Gunslinging . | . . . . . Exploded 1 | . . 1 1 1 Melee . | . . . . . Uniques/NPCs Destroyed . | . . . . . Combat | -11 -10 -10 -9 -9 -------- Run | Scr Mat Min Mat Min Damage Taken 2009 | . 57 406 295 1251 Core 562 | . 28 117 53 364 Absorbed by Shields . | . . . . . Core Remaining (%) 71 | 100 . 42 . . Volleys Fired 129 | 29 9 32 38 21 Largest 2 | 2 2 2 2 2 Hottest 136 | 40 40 85 136 136 Shots Fired 252 | 58 18 60 76 40 Gun 193 | 58 18 60 23 34 Cannon 59 | . . . 53 6 Launcher . | . . . . . Special . | . . . . . Kinetic 143 | 58 18 50 . 17 Thermal 92 | . . 10 76 6 Explosive . | . . . . . Electromagnetic 17 | . . . . 17 Robot Hit Streak 19 | 13 5 19 12 5 Robot Miss Streak 4 | 2 1 2 4 2 Penetration Max . | . . . . . Secondary Targets . | . . . . . Shots Hit Robots 161 | 36 10 41 46 28 Core Hits 66 | 10 4 17 16 19 Critical Kills 1 | . . . 1 . Critical Parts Destroyed 2 | 1 . 1 . . Critical Strikes 4 | 1 . 1 2 . Burn 1 | . . . 1 . Meltdown 1 | . . . 1 . Destroy 2 | 1 . 1 . . Melee Attacks . | . . . . . Impact . | . . . . . Slashing . | . . . . . Piercing . | . . . . . Sneak Attacks . | . . . . . Combat Hostiles . | . . . . . Follow-up Attacks . | . . . . . Damage Inflicted 2371 | 371 114 458 917 511 Guns 1571 | 371 114 458 278 350 Cannons 700 | . . . 639 61 Explosions 100 | . . . . 100 Melee . | . . . . . Ramming . | . . . . . Kinetic 985 | 371 114 340 . 160 Thermal 1196 | . . 118 917 161 Explosive . | . . . . . Electromagnetic 190 | . . . . 190 Impact . | . . . . . Slashing . | . . . . . Piercing . | . . . . . Highest Corruption . | . . . . . Average Corruption . | . . . . . Corruption Purged . | . . . . . Corruption Blocked . | . . . . . Overload Shots . | . . . . . Overflow Damage 5 | . . . . 5 Projectiles . | . . . . . Explosions 5 | . . . . 5 Melee . | . . . . . Knockbacks . | . . . . . Impact . | . . . . . Kinetic . | . . . . . Secondary . | . . . . . Self-Inflicted Damage 54 | . . . . 54 Shots 1 | . . . . 1 Rammed . | . . . . . Targets Rammed . | . . . . . Kicked . | . . . . . Crushed . | . . . . . Highest Temperature 399 | . . 88 399 138 Average Temperature 79 | . . 23 95 66 Received Heat Transfer 359 | . . 195 144 20 Effects 2 | . . . 2 . Energy Bleed 1 | . . . 1 . Matter Decay 1 | . . . 1 . Siege Activations . | . . . . . Robots Corrupted . | . . . . . Combat Hostiles . | . . . . . Parts Fried . | . . . . . Impact Corruptions . | . . . . . Robots Melted 1 | . . . 1 . Combat Hostiles 1 | . . . 1 . Parts Melted 2 | . . 1 1 . Heat Transferred 2357 | . . 259 1887 211 Parts Sabotaged . | . . . . . Parts Stolen . | . . . . . Parts Stripped . | . . . . . Power Chain Reactions . | . . . . . Missiles Intercepted . | . . . . . Alert | -11 -10 -10 -9 -9 ------- Run | Scr Mat Min Mat Min Peak Influence 315 | 35 107 208 315 70 Initial 70 | . 22 41 22 70 Average 121 | 15 72 122 194 58 Maximum Alert Level 1 | . . 1 1 . Low Security (%) 72 | 100 100 74 41 100 Level 1 27 | . . 25 58 . Level 2 . | . . . . . Level 3 . | . . . . . Level 4 . | . . . . . Level 5 . | . . . . . High Security . | . . . . . Max Security . | . . . . . Squads Dispatched 1 | . . . 1 . Investigation 1 | . . . 1 . Extermination . | . . . . . Reinforcement . | . . . . . Assault . | . . . . . Garrison . | . . . . . Intercept . | . . . . . Searches Triggered . | . . . . . Construction Impeded . | . . . . . Haulers Reinforced . | . . . . . Active Scanning Responses . | . . . . . Cargo Convoy Interrupts . | . . . . . Stealth | -11 -10 -10 -9 -9 --------- Run | Scr Mat Min Mat Min Distress Signals 3 | . . . 3 . Communications Jammed . | . . . . . Distress Signals . | . . . . . Times Spotted 52 | . 4 13 21 14 Peak Tracking Total 8 | . 3 3 8 5 Tactical Retreats 2 | . . 2 . . Traps | -11 -10 -10 -9 -9 ------- Run | Scr Mat Min Mat Min Traps Triggered . | . . . . . Indirectly . | . . . . . Trap Hack Attempts . | . . . . . Triggered . | . . . . . Disarmed . | . . . . . Reprogrammed . | . . . . . Reused 3 | . . 1 1 1 Traps Extracted . | . . . . . Installed 3 | . . 1 1 1 Triggered 2 | . . 1 1 . Most Traps Carried 3 | . . 3 3 2 Machines | -11 -10 -10 -9 -9 ---------- Run | Scr Mat Min Mat Min Machines Disabled 3 | . . . 2 1 Max in Single Turn 1 | . . . 1 1 Machines Sabotaged . | . . . . . Garrisons Compromised . | . . . . . Overloaded Fab Kills . | . . . . . Hacking | -11 -10 -10 -9 -9 --------- Run | Scr Mat Min Mat Min Machines Accessed 3 | . 1 . 2 . Terminals 3 | . 1 . 2 . Fabricators . | . . . . . Repair Stations . | . . . . . Recycling Units . | . . . . . Scanalyzers . | . . . . . Garrison Access . | . . . . . Total Hacks 7 | . 2 . 5 . Successful 3 | . . . 3 . Failed 4 | . 2 . 2 . Catastrophic 1 | . . . 1 . Database Lockouts . | . . . . . Manual 5 | . 2 . 3 . Terminals 7 | . 2 . 5 . Fabricators . | . . . . . Repair Stations . | . . . . . Recycling Units . | . . . . . Scanalyzers . | . . . . . Garrison Access . | . . . . . Terminal Hacks 2 | . . . 2 . Alert Level 1 | . . . 1 . Unreport Threat 1 | . . . 1 . Fabricator Hacks . | . . . . . Repair Station Hacks . | . . . . . Recycling Unit Hacks . | . . . . . Scanalyzer . | . . . . . Garrison Access Hacks . | . . . . . Unauthorized Hacks 1 | . . . 1 . Terminals 1 | . . . 1 . Botnet 1 | . . . 1 . Fabricators . | . . . . . Repair Stations . | . . . . . Recycling Units . | . . . . . Scanalyzers . | . . . . . Garrison Access . | . . . . . Data Cores Recovered . | . . . . . Used . | . . . . . Hacking Detections 3 | . 1 . 2 . Full Trace Events 1 | . . . 1 . Feedback Events . | . . . . . Feedback Blocked . | . . . . . Robot Schematics Acquired . | . . . . . Robots Built . | . . . . . Authchips . | . . . . . Time . | . . . . . Total Robot Build Rating . | . . . . . Part Schematics Acquired . | . . . . . Parts Built . | . . . . . Authchips . | . . . . . Time . | . . . . . Total Part Build Rating . | . . . . . Parts Repaired . | . . . . . Time . | . . . . . Parts Recycled . | . . . . . Recycled Matter . | . . . . . Retrieved Matter . | . . . . . Retrieved Components . | . . . . . Parts Scanalyzed . | . . . . . Part Schematics Acquired . | . . . . . Parts Damaged . | . . . . . Bothacking | -11 -10 -10 -9 -9 ------------ Run | Scr Mat Min Mat Min Used RIF Installer . | . . . . . Robots Hacked . | . . . . . Non-combat . | . . . . . Combat . | . . . . . Robot Hacks Applied . | . . . . . Relay Couplers Released . | . . . . . Fabnet Peak Effective % . | . . . . . Robots Rewired . | . . . . . Allies Hacked . | . . . . . Hacks Repelled . | . . . . . Allies | -11 -10 -10 -9 -9 -------- Run | Scr Mat Min Mat Min Total Allies 3 | . . 3 . . Largest Group 3 | . . 3 3 . Highest-Rated Group 40 | . . 40 40 . Highest-Rated Ally 16 | . . 16 16 . Total Orders . | . . . . . Ally Attacks 44 | . . 20 24 . Total Damage 565 | . . 237 328 . Kills 11 | . . 5 6 . Allies Corrupted . | . . . . . Allies Melted . | . . . . . Intel | -11 -10 -10 -9 -9 ------- Run | Scr Mat Min Mat Min Robot Analysis Total . | . . . . . Derelict Logs Recovered 3 | . . 2 . 1 Drone Launches . | . . . . . Drone Recoveries . | . . . . . Exploration | -11 -10 -10 -9 -9 ------------- Run | Scr Mat Min Mat Min Turns Passed 2212 | 167 126 819 674 426 Spaces Moved 1432 | 72 99 735 359 167 Core 15 | 15 . . . . Treads . | . . . . . Legs 327 | . . . 218 109 Wheels 1090 | 57 99 735 141 58 Hover . | . . . . . Flight . | . . . . . Fastest Speed 50 | 50 80 80 80 110 Average Speed 105 | 84 80 80 125 195 Slowest Speed 470 | 200 80 80 190 470 Overloaded Moves . | . . . . . Propulsion Burnouts . | . . . . . Robots Hopped . | . . . . . Cave-ins Triggered 1 | . . . . 1 Exploration Rate (%) 36 | 4 22 99 32 25 Regions Visited 4 Branch Regions 2 Pre-discovered Areas . | . . . . . Known Exits Taken 3 | . 1 1 1 . Unknown Exits Taken 1 | 1 . . . . Scrap Searched 2 | . . 1 . 1 Spaces Dug . | . . . . . Terrain Destroyed 6 | . . . . 6 Melee . | . . . . . Projectile . | . . . . . AOE 6 | . . . . 6 Terrain Rammed . | . . . . . Walls Destroyed . | . . . . . Machines Disabled . | . . . . . Actions | -11 -10 -10 -9 -9 --------- Run | Scr Mat Min Mat Min Total 1896 | 122 129 913 504 228 Wait 260 | 15 16 133 73 23 Move 1428 | 71 98 734 358 167 Hop . | . . . . . Pick Up 15 | . 2 6 4 3 Fast Attach 27 | 7 2 2 14 2 Attach 7 | . . . 2 5 Detach 8 | . 2 . 4 2 Swap 3 | . . . 1 2 Drop 16 | . . 5 9 2 Fire 129 | 29 9 32 38 21 Melee . | . . . . . Ram . | . . . . . Kick . | . . . . . Crush . | . . . . . Escape Stasis . | . . . . . Rewire . | . . . . . Trap 3 | . . 1 1 1 Miscellaneous . | . . . . . Route ------- -11/Scrapyard -10/Materials -10/Mines (discovered 2 exits: *Mat x2) -9/Materials (discovered 2 exits: *Min / Sto) -9/Mines History --------- Turn | Location | Event 28 | -11/Scrapyard | Discovered new exit (range 15) 168 | -11/Scrapyard | Entered Materials 289 | -10/Materials | Discovered new exit (range 7) 293 | -10/Materials | Identified exit to Mines 294 | -10/Materials | Entered Mines 312 | -10/Mines | Build established: Mutant 353 | -10/Mines | Learned Materials terminal intel 357 | -10/Mines | Learned location of 1 exit from Materials 426 | -10/Mines | Found a hidden stash of uninstalled traps 505 | -10/Mines | Discovered new exit (range 14) 538 | -10/Mines | Identified exit to Materials 637 | -10/Mines | Core integrity fell below 50% 736 | -10/Mines | Assisted by bots powering up and referring to "LRC-V3" 790 | -10/Mines | Received a Rocket Launcher from a helpful Derelict 830 | -10/Mines | Discovered exit to Materials (range 8) 1113 | -10/Mines | Entered Materials 1113 | -9/Materials | Accompanied by 3 allies 1113 | -9/Materials | Evolved 2 slots: Utility x2 1114 | -9/Materials | Identified exit to Storage 1115 | -9/Materials | Loaded intel: 11 terminal locations 1750 | -9/Materials | Build established: Scavenger-Mutant 1758 | -9/Materials | Discovered new exit (range 7) 1773 | -9/Materials | Identified exit to Mines 1787 | -9/Materials | Entered Mines 1911 | -9/Mines | Assembled infested the area 1916 | -9/Mines | Assisted by a Guerilla fighting off Assembled 1923 | -9/Mines | Learned 8 Materials zone layouts 2059 | -9/Mines | Lost 3 parts (2n1w) 2210 | -9/Mines | Core integrity fell below 50% 2214 | -9/Mines | Crushed by falling debris 2214 | -9/Mines | Smashed by cave-in Last Messages --------------- 02080_ as-60089 destroyed. 02096_ as-50912 destroyed. 02107_ as-14123 destroyed. 02110_ Acquired 17 matter. 02123_ Wheel destroyed. 02130_ as-80050 destroyed. 02154_ as-07393 destroyed. 02160_ Acquired Wheel. 02173_ Acquired 23 matter. 02174_ U-05 Engineer destroyed. 02176_ Acquired Wheel. 02193_ as-26411 destroyed. 02205_ Wheel destroyed. 02206_ as-53256 destroyed. 02214_ The unstable cave ceiling collapses. 02214_ Crushed by falling debris. 02214_ Wheel destroyed. 02214_ System corrupted by crushing effect (+1). 02214_ Signal Interpreter destroyed. 02214_ System corrupted by crushing effect (+3). Map ----- +----------------------------------------------------+ | ????????????????????????????????????????????????? | | ????????????????????????????????????????????????? | | ????????????????????????????????????????????????? | | ????????????????????????????????????????????????? | | ????????????????????????????????????????????????? | | ????????????????????????????????????????????????? | | ????????????????????????????????????????????????? | | ????????????????????????????????????????????????? | | ????????????????????????????????????????????????? | | ????????????????????????????????????????????????? | | ????????????????????????????????????????????????? | | ????????????????????????????????????????????????? | | ????????????????????????????????????????????????? | | ????????????????????????????????????????????????? | | ????????????????????????????????????????????????? | | ????????????????????????????????????????????????? | | ????????????????????????????????????????????????? | | ????????????????????????????????????????????????? | | ?????????????????????????#######????????????????? | | ???????????????#### ??#########????????????????? | | ??????????????####### ?#### ##????????????????? | | ?????????????#### ## ##?? ##???????????? | | ?????????????### ####### ###? ##???????????? | | ######### ???## ;;##### % ###? ####?????????? | | ###########?### ;;;### ## #####????????? | | ## ####### % @# ## ###????????? | | ## ## ^^ ##### % % #! #####?????? | | ## ^ % #### % %! ###### ???? | | ## %# a *%% ##???? | | ## % % # ##???? | | ## ^ ### #### # ######## ??? | | # % ### ##### #### #############?????? | | ### ######## ##### ##### ######????????????? | | ############ ##### ###### ##????????????????? | | ?####?????## #### ####?## ##????????????????? | | ??????????## %! = ###??## ##????????????????? | | ??????????## %##???## #### ##???????????? | | ??????????### =##???## #### ##???????????? | | ??????????######### ##???## ##???????????? | | ???????????######## ##???## #######???????????? | | ?????????????????## ##???## #######???????????? | | ?????????????????## ##???## ##????????????????? | | ?????????????????# ##???## ##????????????????? | | ?????????????????? ##???## ##????????????????? | | ????????????????? ####???## ##????????????????? | | ????????????????? #####?####% ##????????????????? | | ????????????????? ##????#### ##????????????????? | | ????????????????? ??????## ##????????????????? | | ???????????????## ??????## ##????????????????? | | ???????????????## ??????## ####????????????????? | +----------------------------------------------------+ Best States ------------- Heat Dissipation 28 Energy Generation 14 Energy Capacity 280 Matter Stores 300 Matter Capacity 300 Sight Range 16 Robot Scan Range 14 Terrain Scan Range 16 Terrain Scan Density 85 Evasion (%) 55 Item Schematics ----------------- None Robot Schematics ------------------ None Fabricated ------------ Nothing Alien Tech Used ----------------- None Achievements -------------- None Challenges ------------ None Game ------ Seed GrenadeSkeletonEngine Manual? 0 Play Time 00:18:58 Cumulative 54.7 hours Start 2022.05.07 @ 10:58:30 End 2022.05.07 @ 11:15:02 Sessions 1 Manual Loads 0 Difficulty Rogue Special Mode None Game No. 63 Rogue 63 Adventurer 0 Explorer 0 Win Type - Total 0 Types 0/0/0/0/0/0/0/0/0 Lore% 33 Gallery% 41 Achievement% 32 Wizard Run 0 Options --------- ASCII 0 Keyboard 0 Movement Mouse Keybinds 0 Fullscreen 1 Font 18/SmallcapsGlow Map View 76x50 Tactical HUD 1 Map Filters NONE Filters NONE Steam 1 RUN: 8e0a41a0-ea14-4327-a126-536eea96fc23